lending/lending_fUSD_20250122
["ID","MTS","AMOUNT","RATE_DAILY","PERIOD"]
[350033799,1737583832516,-711.68623832,0.00018809,2]
[350033800,1737583832525,-760.19,0.00018829,2]
[350033801,1737583832535,-250.0,0.0001887,2]
[350033802,1737583832544,-2000.0,0.000189,2]
[350033803,1737583832553,-650.0,0.00019,2]
[350033804,1737583832563,-1000.0,0.00019008,2]
[350033805,1737583832572,-734.53155828,0.00019206,2]
[350033806,1737583832583,-399.64844172,0.00019206,2]
[350033807,1737583832592,-181.22,0.00019275,30]
[350033808,1737583832601,-638.97,0.00019375,2]
[350033809,1737583832611,-1691.604,0.00019514,2]
[350033810,1737583832620,-150.0,0.00019514,2]
[350033811,1737583832629,-500.0,0.00019515,2]
[350033812,1737583832638,-500.0,0.00019515,2]
[350033813,1737583832647,-500.0,0.00019515,2]
[350033814,1737583832656,-500.0,0.00019515,2]
[350033815,1737583832666,-500.0,0.00019515,2]
[350033816,1737583832675,-500.0,0.00019515,2]
[350033817,1737583832685,-500.0,0.00019515,2]
[350033818,1737583832696,-524.78717981,0.00019515,2]
[350033819,1737583832705,-500.0,0.00019515,2]
[350033820,1737583832715,-500.0,0.00019515,2]
[350033821,1737583832722,-500.0,0.00019515,2]
[350033822,1737583832731,-500.0,0.00019515,2]
[350033823,1737583832740,-500.0,0.00019515,2]
[350033824,1737583832749,-500.0,0.00019515,2]
[350033825,1737583832759,-500.0,0.00019515,2]
[350033826,1737583832767,-500.0,0.00019515,2]
[350033827,1737583832776,-500.0,0.00019515,2]
[350033828,1737583832785,-500.0,0.00019515,2]
[350033829,1737583832794,-500.0,0.00019515,2]
[350033830,1737583832803,-500.0,0.00019515,2]
[350033831,1737583832812,-500.0,0.00019515,2]
[350033833,1737583832821,-500.0,0.00019515,2]
[350033835,1737583832831,-404.3968059,0.00019515,2]
[350033837,1737583832841,-500.0,0.00019515,2]
[350033840,1737583832850,-500.0,0.00019515,2]
[350033841,1737583832859,-500.0,0.00019515,2]
[350033843,1737583832868,-500.0,0.00019515,2]
[350033846,1737583832883,-500.0,0.00019515,2]
[350033848,1737583832892,-500.0,0.00019515,2]
[350033850,1737583832901,-500.0,0.00019515,2]
[350033852,1737583832910,-500.0,0.00019515,2]
[350033853,1737583832920,-500.0,0.00019515,2]
[350033855,1737583832930,-500.0,0.00019515,2]
[350033857,1737583832939,-500.0,0.00019515,2]
[350033859,1737583832952,-500.0,0.00019515,2]
[350033861,1737583832961,-653.72,0.00019515,2]
[350033863,1737583832971,-500.0,0.00019515,2]
[350033865,1737583832981,-500.0,0.00019515,2]
[350033867,1737583832991,-500.0,0.00019515,2]
[350033870,1737583833002,-500.0,0.00019515,2]
[350033871,1737583833011,-500.0,0.00019515,2]
[350033874,1737583833021,-500.0,0.00019515,2]
[350033876,1737583833030,-487.94365971,0.00019515,2]
[350033878,1737583833038,-500.0,0.00019515,2]
[350033880,1737583833048,-500.0,0.00019515,2]
[350033882,1737583833057,-500.0,0.00019515,2]
[350033884,1737583833066,-394.9593,0.00019525,2]
[350033885,1737583833076,-260.8803,0.00019625,2]
[350033887,1737583833085,-500.0,0.00019724,2]
[350033889,1737583833095,-500.0,0.00019724,2]
[350033891,1737583833104,-500.0,0.00019724,2]
[350033893,1737583833114,-500.0,0.00019724,2]
[350033895,1737583833123,-500.0,0.00019724,2]
[350033898,1737583833132,-500.0,0.00019724,2]
[350033899,1737583833141,-522.91424533,0.00019724,2]
[350033901,1737583833151,-500.0,0.00019724,2]
[350033903,1737583833160,-473.50478319,0.00019724,2]
[350033904,1737583833169,-500.0,0.00019724,2]
[350033906,1737583833179,-516.81115305,0.00019724,2]
[350033908,1737583833188,-500.0,0.00019724,2]
[350033910,1737583833199,-500.0,0.00019724,2]
[350033912,1737583833209,-500.0,0.00019724,2]
[350033914,1737583833218,-500.0,0.00019724,2]
[350033916,1737583833227,-500.0,0.00019724,2]
[350033918,1737583833236,-500.0,0.00019724,2]
[350033920,1737583833245,-500.0,0.00019724,2]
[350033922,1737583833254,-500.0,0.00019724,2]
[350033924,1737583833263,-500.0,0.00019724,2]
[350033926,1737583833272,-500.0,0.00019724,2]
[350033928,1737583833281,-500.0,0.00019724,2]
[350033930,1737583833291,-500.0,0.00019724,2]
[350033932,1737583833300,-500.0,0.00019724,2]
[350033934,1737583833309,-500.0,0.00019789,2]
[350033935,1737583833319,-500.0,0.00019789,2]
[350033936,1737583833327,-500.0,0.00019789,2]
[350033937,1737583833336,-500.0,0.00019789,2]
[350033938,1737583833345,-242.23058958,0.00019789,2]
[350033939,1737583833354,-500.0,0.00019789,2]
[350033940,1737583833363,-500.0,0.00019789,2]
[350033941,1737583833372,-500.0,0.00019789,2]
[350033942,1737583833381,-500.0,0.00019789,2]
[350033943,1737583833390,-500.0,0.00019789,2]
[350033944,1737583833399,-500.0,0.00019789,2]
[350033945,1737583833407,-500.0,0.00019789,2]
[350033946,1737583833417,-500.0,0.00019789,2]
[350033947,1737583833425,-500.0,0.00019789,2]
[350033948,1737583833434,-500.0,0.00019789,2]
[350033949,1737583833443,-500.0,0.00019789,2]
[350033950,1737583833455,-500.0,0.00019789,2]
[350033951,1737583833464,-500.0,0.00019789,2]
[350033953,1737583833473,-500.0,0.00019789,2]
[350033955,1737583833482,-500.0,0.00019789,2]
[350033957,1737583833491,-500.0,0.00019789,2]
[350033959,1737583833500,-500.0,0.00019789,2]
[350033961,1737583833509,-500.0,0.00019789,2]
[350033963,1737583833518,-500.0,0.00019789,2]
[350033964,1737583833527,-500.0,0.00019789,2]
[350033967,1737583833536,-500.0,0.00019789,2]
[350033968,1737583833546,-500.0,0.00019789,2]
[350033970,1737583833556,-500.0,0.00019789,2]
[350033973,1737583833566,-500.0,0.00019789,2]
[350033975,1737583833575,-500.0,0.00019789,2]
[350033976,1737583833584,-500.0,0.00019789,2]
[350033978,1737583833593,-500.0,0.00019789,2]
[350033980,1737583833602,-500.0,0.00019789,2]
[350033982,1737583833611,-653.72,0.00019789,2]
[350033984,1737583833621,-500.0,0.00019789,2]
[350033986,1737583833630,-500.0,0.00019789,2]
[350033988,1737583833639,-500.0,0.00019789,2]
[350033990,1737583833648,-217.91023213,0.00019789,2]
[350033992,1737583833657,-500.0,0.00019789,2]
[350033994,1737583833667,-500.0,0.00019789,2]
[350033996,1737583833676,-500.0,0.00019789,2]
[350033998,1737583833685,-500.0,0.00019789,2]
[350034000,1737583833696,-500.0,0.00019789,2]
[350034002,1737583833705,-181.17,0.00019792,2]
[350034004,1737583833715,-174.86,0.0001983,2]
[350034006,1737583833724,-376.28999529,0.00019898,2]
[350034008,1737583833732,-201.70770015,0.000199,2]
[350034010,1737583833742,-500.0,0.00019998,2]
[350034012,1737583833751,-238.78331631,0.00019998,2]
[350034014,1737583833760,-500.0,0.00019998,2]
[350034016,1737583833770,-355.32080685,0.00019998,2]
[350034018,1737583833779,-500.0,0.00019998,2]
[350034020,1737583833789,-500.0,0.00019998,2]
[350034022,1737583833798,-500.0,0.00019998,2]
[350034024,1737583833807,-500.0,0.00019998,2]
[350034026,1737583833817,-500.0,0.00019998,2]
[350034028,1737583833826,-500.0,0.00019998,2]
[350034030,1737583833835,-500.0,0.00019998,2]
[350034033,1737583833845,-500.0,0.00020062,2]
[350034034,1737583833854,-500.0,0.00020062,2]
[350034036,1737583833864,-500.0,0.00020062,2]
[350034039,1737583833876,-500.0,0.00020062,2]
[350034041,1737583833887,-500.0,0.00020062,2]
[350034042,1737583833896,-703.15,0.00020062,2]
[350034044,1737583833906,-500.0,0.00020062,2]
[350034046,1737583833917,-500.0,0.00020062,2]
[350034048,1737583833927,-500.0,0.00020062,2]
[350034050,1737583833936,-500.0,0.00020062,2]
[350034053,1737583833947,-500.0,0.00020062,2]
[350034054,1737583833958,-500.0,0.00020062,2]
[350034056,1737583833967,-500.0,0.00020062,2]
[350034058,1737583833977,-500.0,0.00020062,2]
[350034060,1737583833988,-581.096362,0.00020062,2]
[350034062,1737583833997,-500.0,0.00020062,2]
[350034064,1737583834006,-500.0,0.00020062,2]
[350034066,1737583834016,-500.0,0.00020062,2]
[350034068,1737583834025,-500.0,0.00020062,2]
[350034070,1737583834035,-500.0,0.00020062,2]
[350034072,1737583834044,-500.0,0.00020062,2]
[350034074,1737583834055,-500.0,0.00020062,2]
[350034076,1737583834064,-600.693953,0.00020062,2]
[350034078,1737583834073,-519.52,0.00020062,2]
[350034080,1737583834082,-500.0,0.00020062,2]
[350034081,1737583834093,-500.0,0.00020062,2]
[350034083,1737583834102,-500.0,0.00020062,2]
[350034085,1737583834112,-508.55,0.00020062,2]
[350034088,1737583834124,-500.0,0.00020062,2]
[350034090,1737583834133,-500.0,0.00020062,2]
[350034091,1737583834142,-620.64,0.00020062,2]
[350034093,1737583834152,-500.0,0.00020062,2]
[350034096,1737583834161,-500.0,0.00020062,2]
[350034097,1737583834171,-500.0,0.00020062,2]
[350034099,1737583834181,-500.0,0.00020062,2]
[350034101,1737583834190,-512.1,0.00020062,2]
[350034104,1737583834203,-500.0,0.00020062,2]
[350034105,1737583834212,-502.52,0.00020062,2]
[350034107,1737583834222,-500.0,0.00020062,2]
[350034108,1737583834231,-500.0,0.00020062,2]
[350034109,1737583834241,-500.0,0.00020062,2]
[350034110,1737583834250,-500.0,0.00020062,2]
[350034111,1737583834259,-500.0,0.00020062,2]
[350034112,1737583834268,-500.0,0.00020062,2]
[350034113,1737583834278,-500.0,0.00020062,2]
[350034114,1737583834287,-500.0,0.00020062,2]
[350034115,1737583834296,-500.0,0.00020062,2]
[350034116,1737583834305,-569.19082096,0.00020062,2]
[350034117,1737583834315,-500.0,0.00020062,2]
[350034118,1737583834323,-668.71,0.00020062,2]
[350034119,1737583834333,-588.85,0.00020062,2]
[350034120,1737583834341,-518.66,0.00020062,2]
[350034121,1737583834350,-500.0,0.00020062,2]
[350034122,1737583834359,-1133.76,0.00020062,2]
[350034123,1737583834368,-500.0,0.00020062,2]
[350034124,1737583834378,-195.97882927,0.00020062,2]
[350034125,1737583834391,-304.02117073,0.00020062,2]
[350034126,1737583834400,-500.0,0.00020062,2]
[350034127,1737583834409,-1000.35,0.00020062,2]
[350034128,1737583834418,-500.0,0.00020062,2]
[350034129,1737583834427,-602.55,0.00020062,2]
[350034130,1737583834436,-500.0,0.00020062,2]
[350034131,1737583834446,-500.0,0.00020062,2]
[350034132,1737583834456,-500.0,0.00020062,2]
[350034133,1737583834465,-822.29,0.00020062,2]
[350034134,1737583834474,-500.0,0.00020062,2]
[350034135,1737583834483,-1510.15,0.00020062,2]
[350034136,1737583834493,-500.0,0.00020062,2]
[350034137,1737583834502,-166.75357242,0.00020062,2]
[350034138,1737583834511,-540.74,0.00020062,2]
[350034139,1737583834520,-785.57,0.00020062,2]
[350034140,1737583834530,-507.07,0.00020062,2]
[350034141,1737583834539,-500.0,0.00020062,2]
[350034142,1737583834549,-500.0,0.00020062,2]
[350034143,1737583834559,-1772.03,0.00020062,2]
[350034144,1737583834568,-500.0,0.00020062,2]
[350034145,1737583834578,-500.0,0.00020062,2]
[350034146,1737583834588,-780.08,0.00020062,2]
[350034147,1737583834598,-526.79,0.00020062,2]
[350034148,1737583834607,-1158.82,0.00020062,2]
[350034149,1737583834617,-389.86782517,0.00020062,2]
[350034150,1737583834808,-500.0,0.00020062,2]
[350034151,1737583834818,-500.0,0.00020062,2]
[350034152,1737583834827,-800.87,0.00020062,2]
[350034153,1737583834837,-452.36,0.00020062,2]
[350034154,1737583834848,-1226.05,0.00020062,2]
[350034155,1737583834857,-500.0,0.00020062,2]
[350034156,1737583834866,-3374.18,0.00020062,2]
[350034157,1737583834878,-500.0,0.00020062,2]
[350034158,1737583834889,-500.0,0.00020062,2]
[350034159,1737583834898,-500.0,0.00020062,2]
[350034160,1737583834908,-500.0,0.00020062,2]
[350034161,1737583834918,-187.82019987,0.00020062,2]
[350034162,1737583834927,-989.14,0.00020062,2]
[350034163,1737583834937,-2499.5,0.00020062,2]
[350034164,1737583834949,-500.0,0.00020062,2]
[350034165,1737583834958,-1738.98,0.00020062,2]
[350034166,1737583834968,-500.0,0.00020062,2]
[350034167,1737583834978,-500.0,0.00020062,2]
[350034168,1737583834987,-500.0,0.00020062,2]
[350034169,1737583834997,-500.0,0.00020062,2]
[350034170,1737583835006,-687.89,0.00020062,2]
[350034171,1737583835016,-500.0,0.00020062,2]
[350034172,1737583835025,-1103.91,0.00020062,2]
[350034173,1737583835034,-500.0,0.00020062,2]
[350034174,1737583835044,-500.0,0.00020062,2]
[350034175,1737583835055,-1389.03,0.00020062,2]
[350034176,1737583835064,-544.33171686,0.00020062,2]
[350034177,1737583835073,-1480.37,0.00020062,2]
[350034178,1737583835083,-588.87,0.00020062,2]
[350034179,1737583835093,-500.0,0.00020062,2]
[350034180,1737583835102,-1442.07,0.00020062,2]
[350034181,1737583835111,-2891.7,0.00020062,2]
[350034182,1737583835121,-500.0,0.00020062,2]
[350034183,1737583835130,-272.01558726,0.00020062,2]
[350034184,1737583835321,-786.98441274,0.00020062,2]
[350034185,1737583835330,-500.0,0.00020062,2]
[350034186,1737583835340,-349.99,0.00020062,2]
[350034187,1737583835349,-514.08400664,0.00020062,2]
[350034195,1737583838171,-228.29599336,0.00020062,2]
[350034197,1737583838182,-500.0,0.00020062,2]
[350034199,1737583838192,-500.0,0.00020062,2]
[350034201,1737583838212,-546.65,0.00020062,2]
[350034203,1737583838222,-500.0,0.00020062,2]
[350034205,1737583838232,-500.0,0.00020062,2]
[350034207,1737583838242,-500.0,0.00020062,2]
[350034209,1737583838251,-500.0,0.00020062,2]
[350034211,1737583838260,-734.9,0.00020062,2]
[350034213,1737583838270,-500.0,0.00020062,2]
[350034215,1737583838279,-1761.13,0.00020062,2]
[350034217,1737583838288,-1465.14,0.00020062,2]
[350034218,1737583838298,-492.17344108,0.00020062,2]
[350034219,1737583838306,-500.0,0.00020062,2]
[350034220,1737583838315,-775.04,0.00020062,2]
[350034221,1737583838325,-500.0,0.00020062,2]
[350034222,1737583838334,-841.93,0.00020062,2]
[350034223,1737583838343,-157.99122738,0.00020062,2]
[350034224,1737583838352,-500.0,0.00020062,2]
[350034225,1737583838361,-500.0,0.00020062,2]
[350034226,1737583838370,-500.0,0.00020062,2]
[350034227,1737583838379,-500.0,0.00020062,2]
[350034228,1737583838388,-500.0,0.00020062,2]
[350034229,1737583838397,-1182.01,0.00020062,2]
[350034230,1737583838407,-500.0,0.00020062,2]
[350034231,1737583838416,-946.15,0.00020062,2]
[350034232,1737583838425,-500.0,0.00020062,2]
[350034233,1737583838434,-500.0,0.00020062,2]
[350034234,1737583838443,-500.0,0.00020062,2]
[350034235,1737583838456,-500.0,0.00020062,2]
[350034236,1737583838466,-500.0,0.00020062,2]
[350034237,1737583838475,-1041.32,0.00020062,2]
[350034238,1737583838484,-588.01,0.00020062,2]
[350034239,1737583838494,-500.0,0.00020062,2]
[350034240,1737583838503,-500.0,0.00020062,2]
[350034241,1737583838512,-500.0,0.00020062,2]
[350034242,1737583838522,-500.0,0.00020062,2]
[350034243,1737583838531,-500.0,0.00020062,2]
[350034244,1737583838540,-500.0,0.00020062,2]
[350034245,1737583838549,-534.98,0.00020062,2]
[350034246,1737583838558,-500.0,0.00020062,2]
[350034247,1737583838568,-1584.51,0.00020062,2]
[350034248,1737583838578,-500.0,0.00020062,2]
[350034249,1737583838587,-500.0,0.00020063,2]
[350034250,1737583838597,-516.70654698,0.00020063,2]
[350034251,1737583838607,-500.0,0.00020063,2]
[350034252,1737583838616,-380.29287332,0.00020063,2]
[350034253,1737583838626,-500.0,0.00020063,2]
[350034254,1737583838641,-500.0,0.00020063,2]
[350034255,1737583838650,-500.0,0.00020063,2]
[350034256,1737583838659,-500.0,0.00020063,2]
[350034257,1737583838669,-500.0,0.00020063,2]
[350034258,1737583838678,-500.0,0.00020063,2]
[350034259,1737583838687,-500.0,0.00020063,2]
[350034260,1737583838696,-500.0,0.00020063,2]
[350034261,1737583838711,-500.0,0.00020063,2]
[350034262,1737583838721,-500.0,0.00020063,2]
[350034263,1737583838730,-500.0,0.00020063,2]
[350034264,1737583838739,-500.0,0.00020063,2]
[350034265,1737583838748,-500.0,0.00020063,2]
[350034266,1737583838758,-500.0,0.00020063,2]
[350034267,1737583838767,-500.0,0.00020063,2]
[350034268,1737583838776,-500.0,0.00020063,2]
[350034269,1737583838785,-500.0,0.00020063,2]
[350034270,1737583838794,-500.0,0.00020063,2]
[350034271,1737583838803,-500.0,0.00020063,2]
[350034272,1737583838812,-500.0,0.00020063,2]
[350034273,1737583838821,-500.0,0.00020063,2]
[350034274,1737583838831,-500.0,0.00020063,2]
[350034275,1737583838840,-500.0,0.00020063,2]
[350034276,1737583838850,-500.0,0.00020063,2]
[350034277,1737583838859,-500.0,0.00020063,2]
[350034278,1737583838869,-500.0,0.00020063,2]
[350034279,1737583838882,-653.72,0.00020063,2]
[350034280,1737583838892,-500.0,0.00020063,2]
[350034281,1737583838901,-500.0,0.00020063,2]
[350034282,1737583838911,-500.0,0.00020063,2]
[350034283,1737583838920,-500.0,0.00020063,2]
[350034284,1737583838929,-500.0,0.00020063,2]
[350034285,1737583838938,-500.0,0.00020063,2]
[350034286,1737583838947,-500.0,0.00020063,2]
[350034287,1737583838964,-500.0,0.00020063,2]
[350034288,1737583838973,-376.28999521,0.0002012,2]
[350034289,1737583838983,-500.0,0.00020235,2]
[350034290,1737583838995,-500.0,0.00020235,2]
[350034291,1737583839006,-6812.14110101,0.00020236,2]
[350034292,1737583839016,-476.96,0.00020261,2]
[350034293,1737583839026,-913.4,0.00020271,2]
[350034294,1737583839036,-541.87,0.00020271,2]
[350034295,1737583839046,-500.0,0.00020271,2]
[350034296,1737583839058,-1091.64,0.00020271,2]
[350034297,1737583839068,-717.88,0.00020271,2]
[350034298,1737583839078,-779.99,0.00020271,2]
[350034299,1737583839088,-607.46,0.00020271,2]
[350034300,1737583839098,-500.0,0.00020271,2]
[350034301,1737583839108,-500.0,0.00020271,2]
[350034302,1737583839118,-1104.74,0.00020271,2]
[350034303,1737583839128,-1179.27,0.00020271,2]
[350034304,1737583839138,-500.0,0.00020271,2]
[350034305,1737583839147,-500.0,0.00020271,2]
[350034306,1737583839157,-1252.52,0.00020271,2]
[350034307,1737583839167,-500.0,0.00020271,2]
[350034308,1737583839176,-500.0,0.00020271,2]
[350034309,1737583839186,-500.0,0.00020271,2]
[350034310,1737583839196,-1515.79,0.00020271,2]
[350034311,1737583839211,-500.0,0.00020271,2]
[350034312,1737583839220,-901.69,0.00020271,2]
[350034313,1737583839230,-1086.52,0.00020271,2]
[350034314,1737583839239,-575.63857477,0.00020272,2]
[350034315,1737583839249,-500.0,0.00020272,2]
[350034316,1737583839259,-500.0,0.00020272,2]
[350034317,1737583839268,-500.0,0.00020272,2]
[350034318,1737583839277,-500.0,0.00020272,2]
[350034319,1737583839287,-317.8570847,0.00020272,2]
[350034320,1737583839296,-500.0,0.00020272,2]
[350034321,1737583839305,-500.0,0.00020272,2]
[350034322,1737583839314,-604.06,0.00020272,2]
[350034323,1737583839326,-704.29,0.00020272,2]
[350034324,1737583839335,-500.0,0.00020272,2]
[350034325,1737583839347,-849.58,0.00020272,2]
[350034326,1737583839357,-819.3,0.00020272,2]
[350034327,1737583839367,-1946.7,0.00020272,2]
[350034328,1737583839376,-3595.33,0.00020272,2]
[350034329,1737583839386,-500.45,0.00020272,2]
[350034330,1737583839396,-886.86,0.00020272,2]
[350034331,1737583839405,-850.47,0.00020272,2]
[350034332,1737583839416,-1696.3,0.00020272,2]
[350034333,1737583839425,-500.0,0.00020272,2]
[350034334,1737583839435,-710.81,0.00020272,2]
[350034335,1737583839447,-912.61,0.00020272,2]
[350034336,1737583839461,-1207.79,0.00020272,2]
[350034337,1737583839470,-500.0,0.00020272,2]
[350034338,1737583839479,-1000.0,0.00020272,2]
[350034339,1737583839488,-1035.96,0.00020272,2]
[350034340,1737583839498,-500.0,0.00020272,2]
[350034341,1737583839507,-1497.98,0.00020272,2]
[350034342,1737583839516,-1894.65,0.00020272,2]
[350034343,1737583839526,-150.0,0.00020293,2]
[350034344,1737583839535,-3903.0,0.00020293,2]
[350034345,1737583839544,-1176.0,0.00020293,2]
[350034346,1737583839553,-150.0,0.00020306,2]
[350034347,1737583839562,-354.65,0.00020336,2]
[350034348,1737583839571,-500.0,0.00020336,2]
[350034349,1737583839580,-336.92192739,0.00020336,2]
[350034350,1737583839590,-500.0,0.00020336,2]
[350034351,1737583839599,-500.0,0.00020336,2]
[350034352,1737583839609,-703.15,0.00020336,2]
[350034353,1737583839618,-500.0,0.00020336,2]
[350034354,1737583839627,-500.0,0.00020336,2]
[350034355,1737583839637,-500.0,0.00020336,2]
[350034356,1737583839646,-500.0,0.00020336,2]
[350034357,1737583839655,-500.0,0.00020336,2]
[350034358,1737583839664,-500.0,0.00020336,2]
[350034359,1737583839674,-500.0,0.00020336,2]
[350034360,1737583839683,-500.0,0.00020336,2]
[350034361,1737583839692,-500.0,0.00020336,2]
[350034362,1737583839701,-500.0,0.00020336,2]
[350034363,1737583839714,-500.0,0.00020336,2]
[350034364,1737583839724,-500.0,0.00020336,2]
[350034365,1737583839733,-500.0,0.00020336,2]
[350034366,1737583839743,-581.096362,0.00020336,2]
[350034367,1737583839752,-500.0,0.00020336,2]
[350034368,1737583839762,-500.0,0.00020336,2]
[350034369,1737583839771,-500.0,0.00020336,2]
[350034370,1737583839781,-500.0,0.00020336,2]
[350034371,1737583839790,-500.0,0.00020336,2]
[350034372,1737583839800,-500.0,0.00020336,2]
[350034373,1737583839810,-500.0,0.00020336,2]
[350034374,1737583839819,-500.0,0.00020336,2]
[350034375,1737583839828,-500.0,0.00020336,2]
[350034376,1737583839838,-600.693953,0.00020336,2]
[350034377,1737583839847,-519.52,0.00020336,2]
[350034378,1737583839856,-500.0,0.00020336,2]
[350034379,1737583839866,-500.0,0.00020336,2]
[350034380,1737583839878,-500.0,0.00020336,2]
[350034381,1737583839888,-508.55,0.00020336,2]
[350034382,1737583839898,-500.0,0.00020336,2]
[350034383,1737583839907,-500.0,0.00020336,2]
[350034384,1737583839918,-420.99959164,0.00020336,2]
[350034385,1737583839927,-500.0,0.00020336,2]
[350034386,1737583839937,-620.64,0.00020336,2]
[350034387,1737583839947,-500.0,0.00020336,2]
[350034388,1737583839963,-500.0,0.00020336,2]
[350034389,1737583839972,-500.0,0.00020336,2]
[350034390,1737583839982,-500.0,0.00020336,2]
[350034391,1737583839991,-500.0,0.00020336,2]
[350034392,1737583840000,-500.0,0.00020336,2]
[350034393,1737583840010,-512.1,0.00020336,2]
[350034394,1737583840019,-500.0,0.00020336,2]
[350034395,1737583840028,-502.52,0.00020336,2]
[350034396,1737583840038,-500.0,0.00020336,2]
[350034397,1737583840048,-500.0,0.00020336,2]
[350034398,1737583840057,-500.0,0.00020336,2]
[350034399,1737583840067,-500.0,0.00020336,2]
[350034400,1737583840076,-500.0,0.00020336,2]
[350034401,1737583840086,-500.0,0.00020336,2]
[350034402,1737583840095,-500.0,0.00020336,2]
[350034403,1737583840105,-500.0,0.00020336,2]
[350034404,1737583840115,-500.0,0.00020336,2]
[350034405,1737583840125,-500.0,0.00020336,2]
[350034406,1737583840134,-500.0,0.00020336,2]
[350034407,1737583840144,-500.0,0.00020336,2]
[350034408,1737583840153,-500.0,0.00020336,2]
[350034409,1737583840162,-500.0,0.00020336,2]
[350034410,1737583840173,-668.71,0.00020336,2]
[350034411,1737583840182,-500.0,0.00020336,2]
[350034412,1737583840192,-588.85,0.00020336,2]
[350034413,1737583840201,-500.0,0.00020336,2]
[350034414,1737583840215,-500.0,0.00020336,2]
[350034415,1737583840225,-500.0,0.00020336,2]
[350034416,1737583840234,-224.37230184,0.00020336,2]
[350034417,1737583840244,-602.55,0.00020336,2]
[350034418,1737583840254,-500.0,0.00020336,2]
[350034419,1737583840263,-822.29,0.00020336,2]
[350034420,1737583840272,-500.0,0.00020336,2]
[350034422,1737583840282,-653.72,0.00020336,2]
[350034424,1737583840291,-540.74,0.00020336,2]
[350034425,1737583840301,-785.57,0.00020336,2]
[350034426,1737583840310,-500.0,0.00020336,2]
[350034427,1737583840320,-507.07,0.00020336,2]
[350034428,1737583840329,-500.0,0.00020336,2]
[350034429,1737583840339,-500.0,0.00020336,2]
[350034430,1737583840348,-500.0,0.00020336,2]
[350034431,1737583840358,-1772.03,0.00020336,2]
[350034432,1737583840526,-780.08,0.00020336,2]
[350034433,1737583840537,-526.79,0.00020336,2]
[350034434,1737583840546,-1158.82,0.00020336,2]
[350034435,1737583840556,-500.0,0.00020336,2]
[350034436,1737583840565,-500.0,0.00020336,2]
[350034437,1737583840574,-500.0,0.00020336,2]
[350034438,1737583840584,-800.87,0.00020336,2]
[350034439,1737583840593,-1226.05,0.00020336,2]
[350034440,1737583840602,-500.0,0.00020336,2]
[350034441,1737583840611,-500.0,0.00020336,2]
[350034442,1737583840620,-500.0,0.00020336,2]
[350034443,1737583840630,-3374.18,0.00020336,2]
[350034444,1737583840639,-500.0,0.00020336,2]
[350034445,1737583840648,-500.0,0.00020336,2]
[350034446,1737583840657,-989.14,0.00020336,2]